Cogmind - Beta 14 @@@ ROGUE MODE // 2024.08.13 @ 22:09:52 Player: Gaffe Result: Destroyed by D0-O6H(R) with Subdweller Laser Performance ------------- Evolutions (0) 0 Regions Visited (3) 600 Robots Destroyed (15) 75 Value Destroyed (312) 312 Prototype IDs (11) 220 Alien Tech Used (0) 0 Bonus (0) 0 TOTAL SCORE: 1207 Bonus ------- None Cogmind --------- Core Integrity 0/250 Matter 125/300 Energy 99/100 System Corruption 4% Temperature Cool (6) Movement Core (150) Ox2 Location -10/Subcaves Parts ------- > --- POWER (1) -------- (None) > --- PROPULSION (2) --- (None) > --- UTILITY (2) ------ Small Storage Unit > --- WEAPON (2) ------- Shotgun > --- INVENTORY (8) ---- Medium Storage Unit Large Storage Unit Seismic Detector Light Armor Plating Rainbow Chip Light Cannon Plasma Cutter Peak State ------------ > --- POWER ------------ Ion Engine > --- PROPULSION ------- Improved Hover Unit Improved Hover Unit > --- UTILITY ---------- Small Storage Unit Terrain Scanner > --- WEAPON ----------- Makeshift Laser Light Cannon > --- INVENTORY -------- Medium Storage Unit Large Storage Unit Seismic Detector Light Armor Plating Rainbow Chip Shotgun Plasma Cutter [Rating: 14] Favorites ----------- Power Ion Engine Engine Ion Engine Propulsion Improved Hover Unit Leg Aluminum Leg Hover Unit Improved Hover Unit Utility Small Storage Unit Device Terrain Scanner Storage Small Storage Unit Weapon Shotgun Energy Gun Makeshift Laser Ballistic Gun Shotgun Ballistic Cannon Light Cannon Special Weapon Plasma Cutter Build | -11 -10 -10 -10 ------- Run | Yrd Mat Min Sub Slots Evolved . | . . . . Power . | . . . . Propulsion . | . . . . Utility . | . . . . Weapon . | . . . . Parts Attached 22 | 6 10 1 5 Power 3 | 1 2 . . Engine 3 | 1 2 . . Core . | . . . . Reactor . | . . . . Propulsion 5 | 2 2 . 1 Treads . | . . . . Leg 2 | 2 . . . Wheel . | . . . . Hover 3 | . 2 . 1 Flight . | . . . . Utility 5 | 1 4 . . Device 2 | . 2 . . Storage 3 | 1 2 . . Processor . | . . . . Hackware . | . . . . Protection . | . . . . Artifact . | . . . . Weapon 9 | 2 2 1 4 Energy Gun 2 | 1 . . 1 Energy Cannon . | . . . . Ballistic Gun 4 | 1 1 1 1 Ballistic Cannon 2 | . 1 . 1 Launcher . | . . . . Special Weapon 1 | . . . 1 Impact Weapon . | . . . . Slashing Weapon . | . . . . Piercing Weapon . | . . . . Special Melee Weapon . | . . . . Unidentified Prototypes . | . . . . Parts Lost 8 | . 2 1 5 Power 2 | . 1 . 1 Propulsion 3 | . . 1 2 Utility 1 | . . . 1 Weapon 2 | . 1 . 1 Highest Loss Streak 5 | . 2 1 5 To Critical Strikes . | . . . . Average Slot Usage (%) 75 | . 85 85 60 Engine 9 | . 9 14 7 Leg 7 | . 20 . . Hover 9 | . 7 14 8 Device 10 | . 10 14 8 Storage 13 | . 12 14 14 Energy Gun 2 | . 2 . 4 Ballistic Gun 11 | . 10 14 10 Ballistic Cannon 8 | . 11 14 3 Peak Build Rating 14 | 6 11 10 14 Average Rating 7 | 4 7 8 8 On Entrance 5 | . 6 9 8 Naked Turns . | . . . . Heaviest Build 17 | 11 15 17 17 Greatest Support 20 | 20 20 7 14 Greatest Overweight (x) 3 | . . 2 3 Average Overweight (x) . | . . 2 1 Largest Inventory Capacity 15 | 8 15 8 8 Average Capacity 7 | 7 7 8 8 Most Carried 8 | . 8 6 8 Average Carried 5 | . 4 6 7 Final Capacity 8 | 8 8 8 8 Final Carried 7 | . 7 6 7 Class Distribution -------------------- 100% | Mutant Dominant Class ---------------- Mutant | -10/Materials Mutant | -10/Mines Mutant | -10/Subcaves Resources | -11 -10 -10 -10 ----------- Run | Yrd Mat Min Sub Matter Collected 549 | 142 185 37 185 Remotely . | . . . . Salvage Created 274 | . 171 31 72 Parts 24 | . 18 5 1 Haulers Intercepted . | . . . . Recyclers Shooed . | . . . . Parts Field Recycled . | . . . . Retrieved Matter . | . . . . Parts Self-Destructed 1 | . . . 1 Prevented . | . . . . Kills | -11 -10 -10 -10 ------- Run | Yrd Mat Min Sub Combat Hostiles Destroyed 14 | . 9 3 2 Guns 10 | . 5 3 2 Cannons 4 | . 4 . . Classes Destroyed 3 | . 3 . . Watcher 1 | . 1 . . Swarmer 9 | . 6 3 . Grunt 5 | . 3 . 2 Best Kill Streak 4 | . 3 4 2 Combat Bots Only 3 | . 3 3 2 Max Kills in Single Turn 1 | . 1 1 1 Gunslinging . | . . . . Exploded . | . . . . Melee . | . . . . Uniques/NPCs Destroyed . | . . . . Combat | -11 -10 -10 -10 -------- Run | Yrd Mat Min Sub Hostile Shots Fired 118 | . 54 13 51 Missed 33 | . 16 5 12 Damage Taken 1003 | . 400 66 537 Core 263 | . 80 . 183 Absorbed by Shields . | . . . . Core Remaining (%) 100 | 100 . . . Volleys Fired 70 | . 43 5 22 Largest 2 | . 2 2 2 Hottest 73 | . 60 58 73 Shots Fired 117 | . 79 10 28 Gun 83 | . 51 5 27 Cannon 33 | . 28 5 . Launcher . | . . . . Special 1 | . . . 1 Kinetic 86 | . 65 10 11 Thermal 17 | . . . 17 Explosive . | . . . . Electromagnetic 14 | . 14 . . Robot Hit Streak 6 | . 4 3 6 Robot Miss Streak 6 | . 6 3 4 Penetration Max . | . . . . Secondary Targets . | . . . . Shots Hit Robots 63 | . 39 6 18 Core Hits 24 | . 16 3 5 Critical Kills . | . . . . Critical Parts Destroyed . | . . . . Critical Strikes 3 | . . . 3 Burn 3 | . . . 3 Melee Attacks . | . . . . Impact . | . . . . Slashing . | . . . . Piercing . | . . . . Sneak Attacks . | . . . . Combat Hostiles . | . . . . Follow-up Attacks . | . . . . Damage Inflicted 871 | . 492 92 287 Guns 626 | . 285 54 287 Cannons 242 | . 204 38 . Explosions . | . . . . Melee . | . . . . Ramming 3 | . 3 . . Kinetic 631 | . 407 92 132 Thermal 155 | . . . 155 Explosive . | . . . . Electromagnetic 82 | . 82 . . Impact . | . . . . Slashing . | . . . . Piercing . | . . . . Highest Corruption 4 | . 4 4 4 Average Corruption 4 | . 4 4 4 Corruption Purged . | . . . . Corruption Blocked . | . . . . Effects 26 | . . 8 18 Message Errors 9 | . . 3 6 Matter Fused 8 | . . 2 6 Heat Flow Errors 1 | . . . 1 Energy Discharges 3 | . . 2 1 Parts Fused 1 | . . . 1 Data Loss (minor) 2 | . . 1 1 Data Loss (major) 1 | . . . 1 Alerts 1 | . . . 1 Overload Shots . | . . . . Overflow Damage . | . . . . Projectiles . | . . . . Explosions . | . . . . Melee . | . . . . Knockbacks 5 | . 3 2 . Impact . | . . . . Kinetic 5 | . 3 2 . Secondary . | . . . . Self-Inflicted Damage . | . . . . Shots . | . . . . Rammed . | . . . . Targets Rammed 1 | . 1 . . Kicked 1 | . 1 . . Crushed . | . . . . Highest Temperature 109 | . 109 12 105 Average Temperature 34 | . 41 7 30 Received Heat Transfer 480 | . 183 . 297 Siege Activations . | . . . . Robots Corrupted . | . . . . Combat Hostiles . | . . . . Parts Fried . | . . . . Impact Corruptions . | . . . . Robots Melted . | . . . . Combat Hostiles . | . . . . Parts Melted . | . . . . Heat Transferred 555 | . . . 555 Parts Sabotaged . | . . . . Parts Stolen . | . . . . Parts Stripped . | . . . . Power Chain Reactions . | . . . . Alert | -11 -10 -10 -10 ------- Run | Yrd Mat Min Sub Peak Influence 275 | . 275 68 . Initial 8 | . . 8 . Average 77 | . 89 66 . Maximum Alert Level 1 | . 1 . . Low Security (%) 93 | 100 89 100 . Level 1 6 | . 10 . . Level 2 . | . . . . Level 3 . | . . . . Level 4 . | . . . . Level 5 . | . . . . High Security . | . . . . Max Security . | . . . . Squads Dispatched 1 | . 1 . . Investigation . | . . . . Extermination . | . . . . Reinforcement 1 | . 1 . . Assault . | . . . . Garrison . | . . . . Intercept . | . . . . Searches Triggered . | . . . . Construction Impeded . | . . . . Haulers Reinforced . | . . . . Active Scanning Responses . | . . . . Cargo Convoy Interrupts . | . . . . Stealth | -11 -10 -10 -10 --------- Run | Yrd Mat Min Sub Distress Signals 2 | . 2 . . Communications Jammed . | . . . . Distress Signals . | . . . . Times Spotted 30 | . 23 3 4 Peak Tracking Total 5 | . 5 3 2 Tactical Retreats 3 | . 3 . . Traps | -11 -10 -10 -10 ------- Run | Yrd Mat Min Sub Traps Triggered 2 | . 2 . . Indirectly . | . . . . Trap Hack Attempts . | . . . . Triggered . | . . . . Disarmed 2 | . 2 . . Reprogrammed . | . . . . Reused . | . . . . Traps Extracted . | . . . . Installed . | . . . . Triggered . | . . . . Machines | -11 -10 -10 -10 ---------- Run | Yrd Mat Min Sub Machines Disabled 2 | . 1 . 1 Max in Single Turn 1 | . 1 . 1 Machines Repaired . | . . . . Machines Dismantled 1 | . . . 1 Machines Sabotaged . | . . . . Overloaded Fab Kills . | . . . . Hacking | -11 -10 -10 -10 --------- Run | Yrd Mat Min Sub Machines Accessed 6 | . 5 . 1 Terminals 4 | . 4 . . Fabricators . | . . . . Repair Stations . | . . . . Recycling Units 1 | . 1 . . Scanalyzers . | . . . . Garrison Access . | . . . . Total Hacks 16 | . 7 . 9 Successful 15 | . 6 . 9 Failed 1 | . 1 . . Catastrophic 1 | . 1 . . Database Lockouts . | . . . . Manual . | . . . . Terminals 5 | . 5 . . Fabricators . | . . . . Repair Stations . | . . . . Recycling Units 2 | . 2 . . Scanalyzers . | . . . . Garrison Access . | . . . . Terminal Hacks 13 | . 4 . 9 Record 8 | . . . 8 Unreport Threat 1 | . 1 . . Locate Traps 1 | . 1 . . Disarm Traps 1 | . 1 . . Dispatch Records 1 | . 1 . . Derelict Proto ID Bank 1 | . . . 1 Fabricator Hacks . | . . . . Repair Station Hacks . | . . . . Recycling Unit Hacks 2 | . 2 . . Report Inventory 1 | . 1 . . Retrieve Components 1 | . 1 . . Scanalyzer . | . . . . Garrison Access Hacks . | . . . . Unauthorized Hacks . | . . . . Terminals . | . . . . Fabricators . | . . . . Repair Stations . | . . . . Recycling Units . | . . . . Scanalyzers . | . . . . Garrison Access . | . . . . Data Cores Recovered . | . . . . Used . | . . . . Hacking Detections 3 | . 3 . . Full Trace Events . | . . . . Feedback Events . | . . . . Feedback Blocked . | . . . . Robot Schematics Acquired . | . . . . Robots Built . | . . . . Authchips . | . . . . Time . | . . . . Total Robot Build Rating . | . . . . Part Schematics Acquired . | . . . . Parts Built . | . . . . Authchips . | . . . . Time . | . . . . Total Part Build Rating . | . . . . Parts Repaired . | . . . . Time . | . . . . Parts Recycled . | . . . . Recycled Matter . | . . . . Retrieved Matter . | . . . . Retrieved Components 1 | . 1 . . Parts Scanalyzed . | . . . . Part Schematics Acquired . | . . . . Parts Damaged . | . . . . Bothacking | -11 -10 -10 -10 ------------ Run | Yrd Mat Min Sub Used RIF Installer . | . . . . Robots Hacked . | . . . . Non-combat . | . . . . Combat . | . . . . Robot Hacks Applied . | . . . . Relay Couplers Released . | . . . . Fabnet Peak Effective % . | . . . . Robots Rewired . | . . . . Allies Hacked . | . . . . Hacks Repelled . | . . . . Allies | -11 -10 -10 -10 -------- Run | Yrd Mat Min Sub Total Allies . | . . . . Largest Group . | . . . . Highest-Rated Group . | . . . . Highest-Rated Ally . | . . . . Total Orders . | . . . . Ally Attacks . | . . . . Total Damage . | . . . . Kills . | . . . . Allies Corrupted . | . . . . Allies Melted . | . . . . Intel | -11 -10 -10 -10 ------- Run | Yrd Mat Min Sub Robot Analysis Total . | . . . . Derelict Logs Recovered . | . . . . Drone Launches . | . . . . Drone Recoveries . | . . . . Exploration | -11 -10 -10 -10 ------------- Run | Yrd Mat Min Sub Turns Passed 1827 | 46 655 385 741 Spaces Moved 1145 | 33 453 191 468 Core 209 | 3 . . 206 Treads . | . . . . Legs 257 | 30 227 . . Wheels . | . . . . Hover 679 | . 226 191 262 Flight . | . . . . Fastest Speed 50 | 50 56 180 56 Average Speed 126 | 113 88 180 142 Slowest Speed 200 | 120 120 180 200 Overloaded Moves . | . . . . Propulsion Burnouts . | . . . . Robots Hopped . | . . . . Cave-ins Triggered . | . . . . Exploration Rate (%) 31 | 3 72 25 27 Regions Visited 3 Branch Regions 2 Pre-discovered Areas . | . . . . Known Exits Taken . | . . . . Unknown Exits Taken 3 | 1 1 1 . Scrap Searched 1 | . . . 1 Spaces Dug . | . . . . Terrain Destroyed . | . . . . Melee . | . . . . Projectile . | . . . . AOE . | . . . . Terrain Rammed . | . . . . Walls Destroyed . | . . . . Machines Disabled . | . . . . Actions | -11 -10 -10 -10 --------- Run | Yrd Mat Min Sub Total 1399 | 38 634 223 504 Wait 131 | . 104 27 . Move 1142 | 32 452 190 468 Hop . | . . . . Pick Up 18 | . 15 . 3 Fast Attach 8 | 6 2 . . Attach 7 | . 3 1 3 Detach 2 | . 1 . 1 Swap 7 | . 5 . 2 Drop 9 | . 8 . 1 Fire 70 | . 43 5 22 Melee . | . . . . Ram . | . . . . Kick 1 | . 1 . . Crush . | . . . . Escape Stasis . | . . . . Rewire . | . . . . Trap . | . . . . Miscellaneous 4 | . . . 4 Route ------- -11/Scrapyard -10/Materials (discovered 2 exits: [*Mat] / [*Min]) -10/Mines (discovered 2 exits: [*Mat] / *Sub) -10/Subcaves (discovered 1 exit: [*Mat]) History --------- Turn | Location | Event 2 | -11/Scrapyard | Discovered new exit (range 16) 47 | -11/Scrapyard | Entered Materials 308 | -10/Materials | Build established: Mutant 574 | -10/Materials | Discovered new exit (range 6) 689 | -10/Materials | Discovered new exit (range 8) 702 | -10/Materials | Entered Mines 776 | -10/Mines | Discovered new exit (range 14) 1072 | -10/Mines | Discovered new exit (range 7) 1087 | -10/Mines | Entered Subcaves 1276 | -10/Subcaves | Visited 4L-MR0's lab 1312 | -10/Subcaves | Found Rainbow Chip 1422 | -10/Subcaves | Shifting Twisted Machinery released Sub. Laser 1439 | -10/Subcaves | Shifting Twisted Machinery released Battle Cannon 1492 | -10/Subcaves | Core integrity fell below 50% 1514 | -10/Subcaves | Core integrity fell below 20% 1542 | -10/Subcaves | Lost 5 parts (1p2n1u1w) 1585 | -10/Subcaves | Discovered new exit (range 13) 1828 | -10/Subcaves | Destroyed by D0-O6H(R) with Subdweller Laser Last Messages --------------- G-34 Mercenary suffers critical hit (Burn). Ion Engine destroyed. Mak. Laser destroyed. Terrain Scanner destroyed. G-47 Trooper destroyed. G-34 Mercenary destroyed. Imp. Heat Sink fries itself beyond repair. Acquired 31 matter. Acquired 41 matter. System corrupted: Matter fused (-5). EXIT=FOUND System corrupted: Heat flow error (+150). Acquired 28 matter. Acquired 22 matter. System corrupted: Matter fused (-6). Q:2FH&6RK06JFYIW0JQ>VD System corrupted: Energy discharge (-33). #D7XZXINUN%WOBR,W RUFS FBZ%#=RPHT75NJ/SBL4L2/,GA52 System corrupted: Matter fused (-10). Map ----- +----------------------------------------------------+ | ?????????????????????????????????????????????????? | | ?????????????????????????????????????????????????? | | ?????????????????????????????????????????????????? | | ?????????????????????????????????????????????????? | | ?????????????????????????????????????????????????? | | ?????????????????????????????????????????????????? | | ?????????????????????????????????????????????????? | | ?????????????????????????????????????????????????? | | ?????????????????????????????????????????????????? | | ??????##?????????????????????????????????????????? | | ?##### ##????????????????????????????????????????? | | ## ## #????????????????????????????????????????? | | #???????????????????????????####??????????? | | ###??????????????????????????? # #??????????? | | #??????#######??###??????????? ???????????? | | ## ##?????# #### #??????????? ???????????? | | # ##????# ##??##?????? #???????????? | | ##???# ### ##???? ????????????? | | ##### #?### ????????????? | | ### ## ## #????????????? | | #?## R #????????????? | | ???# #??? ######## ?? | | # ##### ## #??## ?? | | #??###### #### #??# #? | | #??????## ###### ##??# #? | | ########??# ##?# @ ##### #? | | ???## #### #?## ####???????? | | ?### #??# ### ##??????????? | | ?# ##?###?## ## ##???????????? | | ?# ##?????## ##?###????????????? | | ?## #??????## ##?????????????????? | | ??# #???????###??????????????????? | | ### #?????????????????????????? | | # ########## #????????????????????????? | | #?????????# #????????????????????????? | | #??????????### ???????????????????????? | | ## #????????????# ??????????????????????? | | ### ??????????? ???????????????????????? | | #?## ?????#??? ???????????????????????? | | #???# ### ???????? ?????????????????????????? | | ####???? #??? ?????????????????????????????????? | | ???????? #??????????????????????????????????????? | | #???????? #??????????????????????????????????????? | | #????????##???? ???????????#?????????????????????? | | #??????????????#????#????????????????????????????? | | #??????##??????#???????#????#????????????????????? | | ?????????????????????#???????????????????????????? | | ???????????#???????????#?????????????????????????? | | ??????????#??#?#?????????????????????????????????? | | ?????????#############???????????????????????????? | +----------------------------------------------------+ Best States ------------- Heat Dissipation 25 Energy Generation 10 Energy Capacity 250 Matter Stores 265 Matter Capacity 300 Sight Range 16 Terrain Scan Range 14 Terrain Scan Density 10 Evasion (%) 55 Item Schematics ----------------- None Robot Schematics ------------------ None Fabricated ------------ Nothing Alien Tech Used ----------------- None Achievements -------------- None Challenges ------------ None Game ------ Seed TripodGodTriangulator Manual? 0 Play Time 00:24:48 Cumulative 8.7 hours Start 2024.08.13 @ 21:46:50 End 2024.08.13 @ 22:09:52 Sessions 1 Manual Loads 0 Difficulty Rogue Special Mode None Game No. 13 Rogue 13 Adventurer 0 Explorer 0 Win Type - Total 0 Types 0/0/0/0/0/0/0/0/0 Lore% 7 Gallery% 11 Achievement% 10 Wizard Run 0 Options --------- Layout 1 ASCII 0 Keyboard 0 Movement Mouse Keybinds 0 Fullscreen 2 Font 32/SmallcapsGlow Map View 50x35 Zoom Use 0% Tactical HUD 0 Map Filters NONE Filters NONE Steam 1 RUN: 7cbe3a17-65b4-4327-8288-18f4ca036afc